Cogmind - Beta 13 @@@ ROGUE MODE // 2024.04.24 @ 14:11:52 Player: Faunarr Result: Destroyed by G-47 Trooper with Particle Gun Performance ------------- Evolutions (0) 0 Regions Visited (1) 200 Robots Destroyed (7) 35 Value Destroyed (137) 137 Prototype IDs (0) 0 Alien Tech Used (0) 0 Bonus (0) 0 TOTAL SCORE: 372 Bonus ------- None Cogmind --------- Core Integrity 0/250 Matter 300/300 Energy 100/100 System Corruption 0% Temperature Cool (9) Movement Treading (400) Ox3 Location -10/Materials Parts ------- > --- POWER (1) -------- (None) > --- PROPULSION (2) --- Improved Treads Improved Treads > --- UTILITY (2) ------ Cargo Storage Unit > --- WEAPON (2) ------- (None) > --- INVENTORY (30) --- Improved Treads Improved Treads Medium Storage Unit Terrain Scan Processor Seismic Detector Power Shielding Utility Shielding Peak State ------------ > --- POWER ------------ Light Ion Engine > --- PROPULSION ------- Light Treads Light Treads > --- UTILITY ---------- Medium Storage Unit Seismic Detector > --- WEAPON ----------- Medium Laser Assault Rifle > --- INVENTORY -------- Light Ion Engine Improved Treads Improved Treads Improved Treads Terrain Scan Processor Light Assault Rifle [Rating: 8] Favorites ----------- Power Light Ion Engine Engine Light Ion Engine Propulsion Light Treads Treads Light Treads Utility Cargo Storage Unit Device Seismic Detector Storage Cargo Storage Unit Weapon Assault Rifle Energy Gun Medium Laser Ballistic Gun Assault Rifle Build | -11 -10 ------- Run | Yrd Mat Slots Evolved . | . . Power . | . . Propulsion . | . . Utility . | . . Weapon . | . . Parts Attached 13 | 7 6 Power 2 | 1 1 Engine 2 | 1 1 Core . | . . Reactor . | . . Propulsion 4 | 2 2 Treads 4 | 2 2 Leg . | . . Wheel . | . . Hover . | . . Flight . | . . Utility 4 | 2 2 Device 1 | 1 . Storage 3 | 1 2 Processor . | . . Hackware . | . . Protection . | . . Artifact . | . . Weapon 3 | 2 1 Energy Gun 1 | 1 . Energy Cannon . | . . Ballistic Gun 2 | 1 1 Ballistic Cannon . | . . Launcher . | . . Special Weapon . | . . Impact Weapon . | . . Slashing Weapon . | . . Piercing Weapon . | . . Special Melee Weapon . | . . Unidentified Prototypes . | . . Parts Lost 7 | . 7 Power 2 | . 2 Propulsion 2 | . 2 Utility . | . . Weapon 3 | . 3 Highest Loss Streak 7 | . 7 To Critical Strikes . | . . Average Slot Usage (%) 88 | . 88 Engine 13 | . 13 Treads 27 | . 27 Device 5 | . 5 Storage 14 | . 14 Energy Gun 12 | . 12 Ballistic Gun 13 | . 13 Naked Turns . | . . Heaviest Build 147 | 13 147 Greatest Support 46 | 40 46 Greatest Overweight (x) 3 | . 3 Average Overweight (x) . | . 1 Largest Inventory Capacity 30 | 8 30 Average Capacity 20 | 6 22 Most Carried 11 | 5 11 Average Carried 8 | 2 9 Final Capacity 30 | 8 30 Final Carried 7 | 2 7 Class Distribution -------------------- 56% | Hauler-Mutant 43% | Mutant Dominant Class ---------------- Hauler-Mutant | -10/Materials Resources | -11 -10 ----------- Run | Yrd Mat Matter Collected 344 | 282 62 Remotely . | . . Salvage Created 236 | 95 141 Parts 19 | 8 11 Haulers Intercepted 1 | . 1 Recyclers Shooed . | . . Parts Field Recycled . | . . Retrieved Matter . | . . Parts Self-Destructed . | . . Prevented . | . . Kills | -11 -10 ------- Run | Yrd Mat Combat Hostiles Destroyed 3 | . 3 Melee 1 | . 1 Guns 2 | . 2 Classes Destroyed 4 | 2 2 Tunneler 2 | 2 . Hauler 1 | . 1 Recycler 1 | 1 . Grunt 3 | . 3 Best Kill Streak 3 | 3 2 Combat Bots Only 2 | . 2 Max Kills in Single Turn 2 | 2 1 Gunslinging . | . . Exploded . | . . Melee 1 | . 1 Uniques/NPCs Destroyed . | . . Combat | -11 -10 -------- Run | Yrd Mat Hostile Shots Fired 103 | . 103 Missed 18 | . 18 Damage Taken 1251 | . 1251 Core 251 | . 251 Absorbed by Shields . | . . Core Remaining (%) 100 | 100 . Volleys Fired 21 | 5 16 Largest 2 | 2 2 Hottest 70 | 70 70 Shots Fired 34 | 10 24 Gun 34 | 10 24 Cannon . | . . Launcher . | . . Special . | . . Kinetic 21 | 5 16 Thermal 13 | 5 8 Explosive . | . . Electromagnetic . | . . Robot Hit Streak 11 | 4 11 Robot Miss Streak 2 | 2 2 Penetration Max . | . . Secondary Targets 1 | . 1 Max Gunslinging Chain 1 | . 1 Shots Hit Robots 25 | 6 19 Core Hits 12 | 4 8 Critical Kills . | . . Critical Parts Destroyed . | . . Critical Strikes 1 | . 1 Burn 1 | . 1 Melee Attacks . | . . Impact . | . . Slashing . | . . Piercing . | . . Sneak Attacks . | . . Combat Hostiles . | . . Follow-up Attacks . | . . Damage Inflicted 363 | 95 268 Guns 329 | 93 236 Cannons . | . . Explosions . | . . Melee . | . . Ramming 34 | 2 32 Kinetic 201 | 54 147 Thermal 128 | 39 89 Explosive . | . . Electromagnetic . | . . Impact . | . . Slashing . | . . Piercing . | . . Highest Corruption . | . . Average Corruption . | . . Corruption Purged . | . . Corruption Blocked . | . . Overload Shots . | . . Overflow Damage . | . . Projectiles . | . . Explosions . | . . Melee . | . . Knockbacks . | . . Impact . | . . Kinetic . | . . Secondary . | . . Self-Inflicted Damage . | . . Shots . | . . Rammed 5 | 1 4 Targets Rammed 7 | 1 6 Kicked . | . . Crushed 2 | . 2 Highest Temperature 63 | 27 63 Average Temperature 22 | 11 26 Received Heat Transfer 816 | . 816 Siege Activations . | . . Robots Corrupted . | . . Combat Hostiles . | . . Parts Fried . | . . Impact Corruptions . | . . Robots Melted . | . . Combat Hostiles . | . . Parts Melted . | . . Heat Transferred 444 | 111 333 Parts Sabotaged . | . . Parts Stolen . | . . Parts Stripped . | . . Power Chain Reactions . | . . Alert | -11 -10 ------- Run | Yrd Mat Peak Influence 82 | 15 82 Initial 9 | . 9 Average 11 | 6 12 Maximum Alert Level . | . . Low Security (%) 100 | 100 100 Level 1 . | . . Level 2 . | . . Level 3 . | . . Level 4 . | . . Level 5 . | . . High Security . | . . Max Security . | . . Squads Dispatched 2 | . 2 Investigation 2 | . 2 Extermination . | . . Reinforcement . | . . Assault . | . . Garrison . | . . Intercept . | . . Searches Triggered . | . . Construction Impeded . | . . Haulers Reinforced . | . . Active Scanning Responses . | . . Cargo Convoy Interrupts . | . . Stealth | -11 -10 --------- Run | Yrd Mat Distress Signals 1 | . 1 Communications Jammed . | . . Distress Signals . | . . Times Spotted 15 | . 15 Peak Tracking Total 8 | . 8 Tactical Retreats 3 | . 3 Traps | -11 -10 ------- Run | Yrd Mat Traps Triggered . | . . Indirectly . | . . Trap Hack Attempts . | . . Triggered . | . . Disarmed 4 | . 4 Reprogrammed . | . . Reused . | . . Traps Extracted . | . . Installed . | . . Triggered . | . . Machines | -11 -10 ---------- Run | Yrd Mat Machines Disabled . | . . Max in Single Turn . | . . Machines Repaired . | . . Machines Dismantled . | . . Machines Sabotaged . | . . Overloaded Fab Kills . | . . Hacking | -11 -10 --------- Run | Yrd Mat Machines Accessed 2 | . 2 Terminals 2 | . 2 Fabricators . | . . Repair Stations . | . . Recycling Units . | . . Scanalyzers . | . . Garrison Access . | . . Total Hacks 3 | . 3 Successful 2 | . 2 Failed 1 | . 1 Catastrophic . | . . Database Lockouts . | . . Manual 3 | . 3 Terminals 3 | . 3 Fabricators . | . . Repair Stations . | . . Recycling Units . | . . Scanalyzers . | . . Garrison Access . | . . Terminal Hacks 2 | . 2 Disarm Traps 1 | . 1 Zone Layout 1 | . 1 Fabricator Hacks . | . . Repair Station Hacks . | . . Recycling Unit Hacks . | . . Scanalyzer . | . . Garrison Access Hacks . | . . Unauthorized Hacks . | . . Terminals . | . . Fabricators . | . . Repair Stations . | . . Recycling Units . | . . Scanalyzers . | . . Garrison Access . | . . Data Cores Recovered . | . . Used . | . . Hacking Detections 2 | . 2 Full Trace Events . | . . Feedback Events . | . . Feedback Blocked . | . . Robot Schematics Acquired . | . . Robots Built . | . . Authchips . | . . Time . | . . Total Robot Build Rating . | . . Part Schematics Acquired . | . . Parts Built . | . . Authchips . | . . Time . | . . Total Part Build Rating . | . . Parts Repaired . | . . Time . | . . Parts Recycled . | . . Recycled Matter . | . . Retrieved Matter . | . . Retrieved Components . | . . Parts Scanalyzed . | . . Part Schematics Acquired . | . . Parts Damaged . | . . Bothacking | -11 -10 ------------ Run | Yrd Mat Used RIF Installer . | . . Robots Hacked . | . . Non-combat . | . . Combat . | . . Robot Hacks Applied . | . . Relay Couplers Released . | . . Fabnet Peak Effective % . | . . Robots Rewired . | . . Allies Hacked . | . . Hacks Repelled . | . . Allies | -11 -10 -------- Run | Yrd Mat Total Allies . | . . Largest Group . | . . Highest-Rated Group . | . . Highest-Rated Ally . | . . Total Orders . | . . Ally Attacks . | . . Total Damage . | . . Kills . | . . Allies Corrupted . | . . Allies Melted . | . . Intel | -11 -10 ------- Run | Yrd Mat Robot Analysis Total . | . . Derelict Logs Recovered . | . . Drone Launches . | . . Drone Recoveries . | . . Exploration | -11 -10 ------------- Run | Yrd Mat Turns Passed 1049 | 119 930 Spaces Moved 400 | 67 333 Core 18 | 18 . Treads 382 | 49 333 Legs . | . . Wheels . | . . Hover . | . . Flight . | . . Fastest Speed 50 | 50 160 Average Speed 228 | 130 247 Slowest Speed 400 | 160 400 Overloaded Moves . | . . Propulsion Burnouts . | . . Robots Hopped . | . . Cave-ins Triggered . | . . Exploration Rate (%) 30 | 6 55 Regions Visited 1 Branch Regions . Pre-discovered Areas . | . . Known Exits Taken . | . . Unknown Exits Taken 1 | 1 . Scrap Searched . | . . Spaces Dug . | . . Terrain Destroyed . | . . Melee . | . . Projectile . | . . AOE . | . . Terrain Rammed . | . . Walls Destroyed . | . . Machines Disabled . | . . Actions | -11 -10 --------- Run | Yrd Mat Total 487 | 88 399 Wait 16 | . 16 Move 399 | 66 333 Hop . | . . Pick Up 26 | 9 17 Fast Attach . | . . Attach 12 | 7 5 Detach . | . . Swap 1 | . 1 Drop 5 | . 5 Fire 21 | 5 16 Melee . | . . Ram . | . . Kick . | . . Crush 7 | 1 6 Escape Stasis . | . . Rewire . | . . Trap . | . . Miscellaneous . | . . Route ------- -11/Scrapyard -10/Materials (discovered 1 exit: [*Min]) History --------- Turn | Location | Event 58 | -11/Scrapyard | Discovered new exit (range 16) 120 | -11/Scrapyard | Entered Materials 272 | -10/Materials | Discovered new exit (range 16) 303 | -10/Materials | Build established: Mutant 758 | -10/Materials | Build established: Hauler-Mutant 1033 | -10/Materials | Core integrity fell below 50% 1045 | -10/Materials | Core integrity fell below 20% 1050 | -10/Materials | Destroyed by G-47 Trooper with Particle Gun Last Messages --------------- 00971_ G-47 Trooper suffers critical hit (Burn). 00979_ Med. Laser destroyed. 00983_ Assault Rifle destroyed. 00985_ Acquired 36 matter. 00989_ Acquired 1 matter. 01011_ Lgt. Ion Engine destroyed. 01015_ Lgt. Treads destroyed. 01021_ Critical hit (Burn: +37). 01021_ Lgt. Assault Rifle destroyed. 01021_ Critical hit (Burn: +37). 01025_ Lgt. Ion Engine destroyed. 01027_ Crushed A-02 Transporter. 01027_ A-02 Transporter destroyed. 01030_ Critical hit (Burn: +37). 01031_ Crushed G-47 Trooper. 01031_ G-47 Trooper destroyed. 01032_ Acquired 14 matter. 01035_ Slammed into G-47 Trooper. 01042_ Critical hit (Burn: +37). 01043_ Slammed into G-47 Trooper. Map ----- +----------------------------------------------------+ | ?????????????????????????????????????????????????? | | ?????????????????????????????????????????????????? | | ?????????????????????????????????????????????????? | | ?????????????????????????????????????????????????? | | ?????????????????????????????????????????????????? | | ?????????????????????????????????????????????????? | | ?????????????????????????????????????????????????? | | ???????????????????###???????????????????????????? | | ??????????????? ???????????????????????????? | | ?????????????? +??????????????????????????? | | ?????????????? #??????????????????????????? | | ?????????????? #??????????????????????????? | | ??????#??????? ![[#??????????????????????????? | | ??#"T"# ?????""" ![[#??????????????????????????? | | ? ?""""" [[!#??????????????????????????? | | """"" #??????????????????????????? | | #??????????????????????????? | | ][ #??????????????????????????? | | """"" [! #??????????????????????????? | | == """"" #??????????????????????????? | | == """"" #??????????????????????????? | | *#????????#+#####???????????? | | = ####### ??????????? | | %=*gg ??????????? | | #????####### ########%|!### ??????????? | | #??????????# #??????#!|@#??????????????????????? | | ###????????# #??????#%g=#??????????????????????? | | #????????# #??????#| #??????????????????????? | | ####??#### ##?????# #??????????????????????? | | #??#" #?????# #??????????????????????? | | ## #??#"" #?????# #??????????????????????? | | ## #??#|| #?????# #??????????????????????? | | #### #??#"" < #?????# #??????????????????????? | | # #??#!! #?????# #??????????????????????? | | # #??#"" #?????# #??????????????????????? | | # #??#" #?????# #??????????????????????? | | #/####### ######## #??????????????????????? | | # # # # k#??????????????????????? | | ! # """ + % +% ???# #??????????????????????? | | #### """ # %#??????# #??????????????????????? | | ???# """ # #??????# #??????????????????????? | | ???# # #??????# #??????????????????????? | | ############ #??????# #??????????????????????? | | # + #??????# #??????????????????????? | | # """ """ # #??????? +??????????????????????? | | # """ """ # #??????? #??????????????????????? | | # """ """ # #??????? ???????????????????????? | | ?? # #?????????????????????????????????? | | ??########## #?????????????????????????????????? | | ??########## #?????????????????????????????????? | +----------------------------------------------------+ Best States ------------- Heat Dissipation 25 Energy Generation 10 Energy Capacity 125 Matter Stores 300 Matter Capacity 300 Sight Range 16 Terrain Scan Density 10 Evasion (%) 50 Recoil Reduction 2 Item Schematics ----------------- None Robot Schematics ------------------ None Fabricated ------------ Nothing Alien Tech Used ----------------- None Achievements -------------- None Challenges ------------ None Game ------ Seed KineticTrackerWand Manual? 0 Play Time 00:10:50 Cumulative 9.3 hours Start 2024.04.24 @ 14:03:59 End 2024.04.24 @ 14:11:52 Sessions 1 Manual Loads 0 Difficulty Rogue Special Mode None Game No. 22 Rogue 22 Adventurer 0 Explorer 0 Win Type - Total 0 Types 0/0/0/0/0/0/0/0/0 Lore% 9 Gallery% 15 Achievement% 13 Wizard Run 0 Options --------- Layout 1 ASCII 0 Keyboard 0 Movement Vi Keybinds 0 Fullscreen 2 Font 24/Smallcaps Map View 50x35 Zoom Use 0% Tactical HUD 1 Map Filters NONE Filters NONE Steam 1 RUN: cb9df526-6ac8-44e8-930a-0408ba441484